Cogmind - Beta 13 @@@ ROGUE MODE // 2024.04.12 @ 09:08:46 Player: A Moose Result: Destroyed by Y-54 Guardian with Gatling Laser Performance ------------- Evolutions (4) 2000 Regions Visited (11) 2200 Robots Destroyed (86) 430 Value Destroyed (3798) 3798 Prototype IDs (9) 180 Alien Tech Used (0) 0 Bonus (731) 731 TOTAL SCORE: 9339 Bonus ------- High Alert Combat Kills 125 Follower Combat Kills 364 Aligned with FarCom 300 Friendly Fire -58 Cogmind --------- Core Integrity 0/850 Matter 268/300 Energy 84/100 System Corruption 2% Temperature Cool (12) Movement Walking (120) Location -6/Hub_04(d) Parts ------- > --- POWER (1) -------- (None) > --- PROPULSION (4) --- Carbon-fiber Leg > --- UTILITY (7) ------ (None) > --- WEAPON (3) ------- (None) > --- INVENTORY (5) ---- Light Antimatter Reactor Quantum Reactor Advanced ECM Suite Improved Field Recycling Unit (76) Peak State ------------ > --- POWER ------------ Light Fission Core > --- PROPULSION ------- Centrium Heavy Treads Carbon-fiber Leg Carbon-fiber Leg > --- UTILITY ---------- Medium Storage Unit Improved Signal Interpreter Advanced Targeting Computer Advanced Targeting Computer Armor Integrity Analyzer Centrium Medium Armor Plating Improved Hacking Suite > --- WEAPON ----------- Wave Gun Gauss Rifle Advanced KE Penetrator > --- INVENTORY -------- Neutrino Core Light Antimatter Reactor Quantum Reactor Advanced Heat Sink High-capacity Matter Pod Enhanced Optical Array Advanced ECM Suite Improved System Shield Improved Field Recycling Unit KE Penetrator [Rating: 80] Favorites ----------- Power Improved Deuterium Engine Engine Improved Deuterium Engine Power Core Light Nuclear Core Propulsion Flexi-carbon Leg Treads Centrium Heavy Treads Leg Flexi-carbon Leg Wheel Wheel Flight Unit Flying Fortress v7 Utility Advanced Targeting Computer Device Coolant Injector Storage Medium Storage Unit Processor Advanced Targeting Computer Hackware Improved Hacking Suite Protection Improved Medium Armor Plating Weapon Gauss Rifle Energy Gun Plasma Rifle Energy Cannon Heavy Particle Cannon Ballistic Gun Gauss Rifle Ballistic Cannon Advanced Assault Cannon Launcher Heavy Shock Bomb Launcher Special Melee Weapon Improved Datajack Build | -11 -10 -10 -10 -9 -8 -7 -6 -6 -6 -6 -6 ------- Run | Yrd Mat Min Exi Min Mat Fac Fac Ext Cet Arc Hub Slots Evolved 8 | . . . . . 4 2 2 . . . . Power . | . . . . . . . . . . . . Propulsion 2 | . . . . . 2 . . . . . . Utility 5 | . . . . . 2 2 1 . . . . Weapon 1 | . . . . . . . 1 . . . . Parts Attached 98 | 6 1 . 1 . 7 11 18 23 18 3 10 Power 10 | 1 . . . . 1 1 1 3 2 . 1 Engine 6 | 1 . . . . 1 1 1 1 1 . . Core 4 | . . . . . . . . 2 1 . 1 Reactor . | . . . . . . . . . . . . Propulsion 24 | 2 . . . . 2 1 2 10 5 . 2 Treads 1 | . . . . . . . . . 1 . . Leg 16 | . . . . . . . . 10 4 . 2 Wheel 2 | 2 . . . . . . . . . . . Hover . | . . . . . . . . . . . . Flight 5 | . . . . . 2 1 2 . . . . Utility 35 | 1 1 . 1 . 2 5 6 7 5 2 5 Device 11 | . . . . . . 2 1 4 2 . 2 Storage 3 | 1 . . 1 . . . 1 . . . . Processor 6 | . . . . . 2 1 1 1 . 1 . Hackware 1 | . . . . . . . . . . 1 . Protection 14 | . 1 . . . . 2 3 2 3 . 3 Artifact . | . . . . . . . . . . . . Weapon 29 | 2 . . . . 2 4 9 3 6 1 2 Energy Gun 8 | 1 . . . . . . 3 2 1 1 . Energy Cannon 5 | . . . . . 2 . 2 . 1 . . Ballistic Gun 11 | 1 . . . . . 3 1 . 4 . 2 Ballistic Cannon 2 | . . . . . . . 1 1 . . . Launcher 2 | . . . . . . . 2 . . . . Special Weapon . | . . . . . . . . . . . . Impact Weapon . | . . . . . . . . . . . . Slashing Weapon . | . . . . . . . . . . . . Piercing Weapon . | . . . . . . . . . . . . Special Melee Weapon 1 | . . . . . . 1 . . . . . Unidentified Prototypes 5 | . . . . . 1 . 1 . 3 . . Parts Lost 39 | . . . . . 2 . 1 6 20 . 10 Power 5 | . . . . . 1 . . 1 2 . 1 Propulsion 12 | . . . . . . . . 2 6 . 4 Utility 12 | . . . . . . . 1 1 7 . 3 Weapon 10 | . . . . . 1 . . 2 5 . 2 Highest Loss Streak 16 | . . . . . 2 . 1 4 16 . 4 To Critical Strikes . | . . . . . . . . . . . . Average Slot Usage (%) 83 | . 90 100 100 100 62 74 78 94 77 89 76 Engine 5 | . 14 14 14 14 8 7 6 2 3 . . Core 1 | . . . . . . . . 3 2 6 4 Treads 1 | . . . . . . . . . 4 6 5 Leg 6 | . . . . . . . . 21 6 13 6 Wheel 3 | . 28 28 28 28 . . . . . . . Flight 3 | . . . . . 9 7 6 . . . . Device 5 | . . . . . . 4 8 11 . . . Storage 7 | . 14 14 14 14 9 7 7 6 6 6 5 Processor 19 | . . . . . 9 22 20 21 25 25 24 Protection 8 | . 4 14 14 14 9 8 8 5 11 6 4 Energy Gun 6 | . 14 14 14 14 3 . 3 11 1 4 5 Energy Cannon 2 | . . . . . 12 6 3 . . . . Ballistic Gun 8 | . 14 14 14 14 2 7 9 3 12 14 10 Naked Turns 8 | . . . . . . . . . . . 8 Heaviest Build 52 | 14 15 15 20 20 26 49 52 50 46 39 41 Greatest Support 80 | 20 20 20 20 20 50 50 50 80 80 80 80 Greatest Overweight (x) 9 | . . . . . . . 1 9 2 . 2 Average Overweight (x) . | . . . . . . . . . . . . Largest Inventory Capacity 10 | 8 8 8 10 10 10 10 10 10 10 10 10 Average Capacity 9 | 7 8 8 8 10 10 10 10 10 10 10 9 Most Carried 10 | 3 3 3 8 9 9 10 10 10 10 10 10 Average Carried 8 | . 1 3 5 8 6 9 9 9 8 7 9 Final Capacity 10 | 8 8 8 10 10 10 10 10 10 10 10 5 Final Carried 10 | 1 3 3 8 9 7 10 9 10 7 10 4 Class Distribution -------------------- 40% | Mutant 30% | Scavenger-Gunner 21% | Gunner 7% | Scavenger-Mutant Dominant Class ---------------- Mutant | -10/Materials Mutant | -10/Mines Mutant | -10/Exiles Mutant | -9/Mines Mutant | -8/Materials Mutant | -7/Factory Gunner | -6/Factory Scavenger-Gunner | -6/Extension Scavenger-Mutant | -6/Cetus Scavenger-Gunner | -6/Archives Scavenger-Gunner | -6/Hub_04(d) Resources | -11 -10 -10 -10 -9 -8 -7 -6 -6 -6 -6 -6 ----------- Run | Yrd Mat Min Exi Min Mat Fac Fac Ext Cet Arc Hub Matter Collected 2664 | 221 79 . 113 . 40 156 417 919 401 156 162 Remotely . | . . . . . . . . . . . . Salvage Created 4205 | . 95 . . . 81 290 873 1146 957 396 367 Parts 228 | . 5 . . . 11 20 66 42 41 21 22 Haulers Intercepted . | . . . . . . . . . . . . Recyclers Shooed . | . . . . . . . . . . . . Parts Field Recycled 6 | . . . . . . . . 6 . . . Retrieved Matter 76 | . . . . . . . . 76 . . . Parts Self-Destructed . | . . . . . . . . . . . . Prevented . | . . . . . . . . . . . . Kills | -11 -10 -10 -10 -9 -8 -7 -6 -6 -6 -6 -6 ------- Run | Yrd Mat Min Exi Min Mat Fac Fac Ext Cet Arc Hub Combat Hostiles Destroyed 71 | . 3 . . . 4 7 15 18 14 4 6 Guns 52 | . 3 . . . 2 3 9 12 13 4 6 Cannons 12 | . . . . . . 4 3 5 . . . AOE 5 | . . . . . 2 . 3 . . . . Classes Destroyed 16 | . 3 . . . 2 2 4 4 . . 1 Worker 1 | . . . . . . . 1 . . . . Builder 1 | . . . . . . . . 1 . . . Recycler 2 | . . . . . . . 1 1 . . . Mechanic 2 | . . . . . 1 . 1 . . . . Operator 3 | . 1 . . . . . . . . 2 . Watcher 6 | . . . . . 1 1 2 1 1 . . Swarmer 15 | . 2 . . . 4 4 4 1 . . . Cutter 4 | . . . . . . . 4 . . . . Grunt 22 | . 1 . . . . . 2 7 9 . 3 Brawler 2 | . . . . . . . . 1 1 . . Duelist 1 | . . . . . . . . . . . 1 Sentry 14 | . . . . . . 2 1 6 . 4 1 Hunter 3 | . . . . . . . . . 2 . 1 Programmer 4 | . . . . . . 1 3 . . . . Heavy 1 | . . . . . . . 1 . . . . Behemoth 2 | . . . . . . . . 2 . . . Cetus Guard 2 | . . . . . . . . . 2 . . Guerrilla 1 | . . . . . . . . 1 . . . Best Kill Streak 7 | . 2 . . . 5 4 7 7 6 6 2 Combat Bots Only 7 | . 2 . . . 4 4 5 7 4 4 2 Max Kills in Single Turn 3 | . 1 . . . 3 1 3 2 1 1 1 Gunslinging 1 | . . . . . . . 1 . . . . Exploded 2 | . . . . . 2 . 2 . . . . Melee . | . . . . . . . . . . . . Uniques/NPCs Destroyed . | . . . . . . . . . . . . Combat | -11 -10 -10 -10 -9 -8 -7 -6 -6 -6 -6 -6 -------- Run | Yrd Mat Min Exi Min Mat Fac Fac Ext Cet Arc Hub Hostile Shots Fired 839 | . 29 2 . 6 30 86 82 188 237 13 166 Missed 271 | . 8 1 . 2 15 38 32 72 60 4 39 Damage Taken 8422 | . 222 58 . 49 193 424 910 1519 3453 204 1390 Core 1046 | . 52 45 . 22 9 65 72 145 375 22 239 Absorbed by Shields . | . . . . . . . . . . . . Redirected to Shielding 26 | . 6 . . 3 17 . . . . . . Ignored by Resistances 117 | . . . . . . 117 . . . . . Core Remaining (%) 85 | 100 . . . 52 98 90 . . . . . Volleys Fired 230 | . 10 1 . . 7 29 46 53 51 12 21 Largest 3 | . 2 2 . . 2 2 3 3 3 3 3 Hottest 210 | . 70 70 . . 138 138 163 210 210 144 149 Shots Fired 524 | . 20 2 . . 14 56 117 138 94 32 51 Gun 441 | . 20 2 . . 12 36 95 102 91 32 51 Cannon 76 | . . . . . 2 20 15 36 3 . . Launcher 7 | . . . . . . . 7 . . . . Special . | . . . . . . . . . . . . Kinetic 343 | . 10 1 . . 6 36 83 73 69 29 36 Thermal 129 | . 10 1 . . 7 15 6 51 21 3 15 Explosive . | . . . . . . . . . . . . Electromagnetic 52 | . . . . . 1 5 28 14 4 . . Robot Hit Streak 48 | . 3 4 . . 3 8 8 14 48 14 14 Robot Miss Streak 5 | . 2 1 . . 4 4 4 5 2 1 2 Penetration Max 1 | . . . . . . . 1 1 1 1 1 Secondary Targets 6 | . 1 . . . . . 1 . 2 1 1 Max Gunslinging Chain 1 | . 1 . . . . . 1 . 1 1 1 Shots Hit Robots 371 | . 11 1 . . 5 41 76 89 81 25 42 Core Hits 161 | . 6 . . . 6 14 32 41 35 13 14 Critical Kills 11 | . . . . . . . 2 . 4 5 . Critical Parts Destroyed 11 | . . . . . . . . 1 7 2 1 Critical Strikes 28 | . . . . . 1 . 2 4 12 7 2 Burn 6 | . . . . . 1 . . 3 1 . 1 Destroy 22 | . . . . . . . 2 1 11 7 1 Melee Attacks 9 | . . . . . . 9 . . . . . Impact . | . . . . . . . . . . . . Slashing . | . . . . . . . . . . . . Piercing . | . . . . . . . . . . . . Sneak Attacks 9 | . . . . . . 9 . . . . . Combat Hostiles . | . . . . . . . . . . . . Follow-up Attacks . | . . . . . . . . . . . . Damage Inflicted 8903 | . 141 13 . . 369 742 2050 2276 1909 621 782 Guns 6834 | . 141 13 . . 73 404 1430 1536 1834 621 782 Cannons 1431 | . . . . . 46 338 316 656 75 . . Explosions 638 | . . . . . 250 . 304 84 . . . Melee . | . . . . . . . . . . . . Ramming . | . . . . . . . . . . . . Kinetic 5621 | . 103 13 . . 36 404 1326 1208 1367 574 590 Thermal 2406 | . 38 . . . 287 250 243 881 468 47 192 Explosive . | . . . . . . . . . . . . Electromagnetic 876 | . . . . . 46 88 481 187 74 . . Impact . | . . . . . . . . . . . . Slashing . | . . . . . . . . . . . . Piercing . | . . . . . . . . . . . . Highest Corruption 2 | . . . . . . 1 2 2 2 2 2 Average Corruption 1 | . . . . . . 1 1 2 2 2 2 Corruption Purged . | . . . . . . . . . . . . Corruption Blocked . | . . . . . . . . . . . . Effects 48 | . . . . . . 6 11 13 8 7 3 Message Errors 16 | . . . . . . 1 1 5 7 2 . Matter Fused 9 | . . . . . . 1 4 3 . 1 . Heat Flow Errors 4 | . . . . . . . 1 2 . . 1 Energy Discharges 6 | . . . . . . 3 1 . . 1 1 Parts Rejected 2 | . . . . . . . . . 1 1 . Data Loss (minor) 3 | . . . . . . . 2 1 . . . Data Loss (major) 1 | . . . . . . . 1 . . . . Misfires 4 | . . . . . . 1 . 1 . 1 1 Weapon Failures 3 | . . . . . . . 1 1 . 1 . Overload Shots . | . . . . . . . . . . . . Overflow Damage 34 | . . . . . 2 . 32 . . . . Projectiles 11 | . . . . . . . 11 . . . . Explosions 23 | . . . . . 2 . 21 . . . . Melee . | . . . . . . . . . . . . Knockbacks 3 | . . . . . . . . 3 . . . Impact . | . . . . . . . . . . . . Kinetic 3 | . . . . . . . . 3 . . . Secondary . | . . . . . . . . . . . . Self-Inflicted Damage 75 | . . . . . 52 . 23 . . . . Shots 3 | . . . . . 1 . 2 . . . . Rammed . | . . . . . . . . . . . . Targets Rammed . | . . . . . . . . . . . . Kicked . | . . . . . . . . . . . . Crushed . | . . . . . . . . . . . . Highest Temperature 394 | . 69 21 . 1 81 279 199 394 307 144 192 Average Temperature 86 | . 23 13 . 1 30 92 99 106 77 58 82 Received Heat Transfer 1898 | . 108 12 . 27 . 24 39 624 899 36 129 Effects 7 | . . . . . . . . 7 . . . Energy Bleed 1 | . . . . . . . . 1 . . . Interference 6 | . . . . . . . . 6 . . . Siege Activations . | . . . . . . . . . . . . Robots Corrupted . | . . . . . . . . . . . . Combat Hostiles . | . . . . . . . . . . . . Parts Fried 3 | . . . . . 2 . . 1 . . . Impact Corruptions . | . . . . . . . . . . . . Robots Melted 2 | . . . . . . . . 1 1 . . Combat Hostiles 2 | . . . . . . . . 1 1 . . Parts Melted 8 | . . . . . . . . 5 2 . 1 Heat Transferred 4615 | . 111 . . . 335 370 235 2100 1020 74 370 Parts Sabotaged 2 | . . . . . . . . . . . 2 Parts Stolen . | . . . . . . . . . . . . Parts Stripped . | . . . . . . . . . . . . Power Chain Reactions 1 | . . . . . . . 1 . . . . Alert | -11 -10 -10 -10 -9 -8 -7 -6 -6 -6 -6 -6 ------- Run | Yrd Mat Min Exi Min Mat Fac Fac Ext Cet Arc Hub Peak Influence 499 | . 155 60 . 45 252 236 469 499 329 197 159 Initial 235 | . . 60 . . 17 114 25 158 235 43 68 Average 201 | . 57 60 . 25 185 125 173 392 160 163 105 Maximum Alert Level 2 | . . . . . 1 1 2 2 1 . . Low Security (%) 61 | 100 100 100 . 100 25 90 65 2 77 100 100 Level 1 19 | . . . . . 74 9 16 33 22 . . Level 2 18 | . . . . . . . 18 63 . . . Level 3 . | . . . . . . . . . . . . Level 4 . | . . . . . . . . . . . . Level 5 . | . . . . . . . . . . . . High Security . | . . . . . . . . . . . . Max Security . | . . . . . . . . . . . . Squads Dispatched 18 | . 3 . . . . 3 6 3 . . 3 Investigation 6 | . 2 . . . . 2 . 2 . . . Extermination 3 | . . . . . . 1 2 . . . . Reinforcement 6 | . 1 . . . . . 4 . . . 1 Assault 2 | . . . . . . . . 1 . . 1 Garrison 1 | . . . . . . . . . . . 1 Intercept . | . . . . . . . . . . . . Searches Triggered . | . . . . . . . . . . . . Construction Impeded 1 | . . . . . . . 1 . . . . Haulers Reinforced . | . . . . . . . . . . . . Active Scanning Responses . | . . . . . . . . . . . . Cargo Convoy Interrupts . | . . . . . . . . . . . . Stealth | -11 -10 -10 -10 -9 -8 -7 -6 -6 -6 -6 -6 --------- Run | Yrd Mat Min Exi Min Mat Fac Fac Ext Cet Arc Hub Distress Signals 8 | . 1 . . . 1 . 1 3 2 . . Communications Jammed . | . . . . . . . . . . . . Distress Signals . | . . . . . . . . . . . . Times Spotted 134 | . 11 2 . 3 8 10 23 29 26 8 14 Peak Tracking Total 9 | . 9 3 . 3 6 5 5 5 9 1 6 Tactical Retreats 13 | . 1 . . 1 2 . 4 4 . . 1 Traps | -11 -10 -10 -10 -9 -8 -7 -6 -6 -6 -6 -6 ------- Run | Yrd Mat Min Exi Min Mat Fac Fac Ext Cet Arc Hub Traps Triggered 6 | . 2 . . . . . 2 2 . . . Indirectly 2 | . . . . . . . 2 . . . . Trap Hack Attempts . | . . . . . . . . . . . . Triggered . | . . . . . . . . . . . . Disarmed . | . . . . . . . . . . . . Reprogrammed . | . . . . . . . . . . . . Reused . | . . . . . . . . . . . . Traps Extracted . | . . . . . . . . . . . . Installed . | . . . . . . . . . . . . Triggered . | . . . . . . . . . . . . Machines | -11 -10 -10 -10 -9 -8 -7 -6 -6 -6 -6 -6 ---------- Run | Yrd Mat Min Exi Min Mat Fac Fac Ext Cet Arc Hub Machines Disabled 14 | . . . . . 4 . 1 5 2 1 1 Max in Single Turn 4 | . . . . . 4 . 1 2 1 1 1 Garrison Access 1 | . . . . . . . . . . . 1 Energy Cycler 1 | . . . . . . . . 1 . . . Machines Repaired . | . . . . . . . . . . . . Machines Dismantled . | . . . . . . . . . . . . Machines Sabotaged . | . . . . . . . . . . . . Overloaded Fab Kills . | . . . . . . . . . . . . Hacking | -11 -10 -10 -10 -9 -8 -7 -6 -6 -6 -6 -6 --------- Run | Yrd Mat Min Exi Min Mat Fac Fac Ext Cet Arc Hub Machines Accessed 31 | . 1 . . . 3 9 5 7 3 1 2 Terminals 22 | . 1 . . . 2 6 3 6 3 . 1 Fabricators 4 | . . . . . . 2 2 . . . . Repair Stations . | . . . . . . . . . . . . Recycling Units 1 | . . . . . . . . 1 . . . Scanalyzers 2 | . . . . . 1 1 . . . . . Garrison Access 1 | . . . . . . . . . . . 1 Total Hacks 99 | . 3 . . . 8 24 12 19 5 25 3 Successful 66 | . . . . . 6 14 8 11 2 25 . Failed 33 | . 3 . . . 2 10 4 8 3 . 3 Catastrophic 8 | . . . . . 1 . 3 2 . . 2 Database Lockouts . | . . . . . . . . . . . . Manual 5 | . . . 1 . 1 1 2 . . . . Terminals 56 | . 3 . . . 7 14 9 17 5 . 1 Fabricators 10 | . . . . . . 7 3 . . . . Repair Stations . | . . . . . . . . . . . . Recycling Units 2 | . . . . . . . . 2 . . . Scanalyzers 4 | . . . . . 1 3 . . . . . Garrison Access 2 | . . . . . . . . . . . 2 Terminal Hacks 56 | . . . . . 5 8 6 10 2 25 . Record 35 | . . . . . 2 1 3 2 2 25 . Part Schematic 1 | . . . . . . 1 . . . . . Robot Analysis 1 | . . . . . . . . 1 . . . Prototype ID Bank 2 | . . . . . 1 1 . . . . . Open Door 2 | . . . . . . . 1 1 . . . Open DSF 1 | . . . . . . 1 . . . . . Emergency Access Points 2 | . . . . . . 2 . . . . . Terminal Index 1 | . . . . . 1 . . . . . . Alert Level 4 | . . . . . 1 . . 3 . . . Locate Traps 3 | . . . . . . 1 1 1 . . . Dispatch Records 2 | . . . . . . 1 . 1 . . . Extermination Status 1 | . . . . . . . . 1 . . . Zone Layout 1 | . . . . . . . 1 . . . . Fabricator Hacks 6 | . . . . . . 4 2 . . . . Network Status 1 | . . . . . . 1 . . . . . Load Schematic 2 | . . . . . . 2 . . . . . Build 3 | . . . . . . 1 2 . . . . Repair Station Hacks . | . . . . . . . . . . . . Recycling Unit Hacks 1 | . . . . . . . . 1 . . . Report Inventory 1 | . . . . . . . . 1 . . . Scanalyzer 3 | . . . . . 1 2 . . . . . Insert Component 2 | . . . . . 1 1 . . . . . Analyze 1 | . . . . . . 1 . . . . . Garrison Access Hacks . | . . . . . . . . . . . . Unauthorized Hacks . | . . . . . . . . . . . . Terminals . | . . . . . . . . . . . . Fabricators . | . . . . . . . . . . . . Repair Stations . | . . . . . . . . . . . . Recycling Units . | . . . . . . . . . . . . Scanalyzers . | . . . . . . . . . . . . Garrison Access . | . . . . . . . . . . . . Data Cores Recovered 1 | . 1 . . . . . . . . . . Used . | . . . . . . . . . . . . Hacking Detections 22 | . 1 . . . 2 6 3 6 2 . 2 Full Trace Events 4 | . . . . . . 2 . 2 . . . Feedback Events . | . . . . . . . . . . . . Feedback Blocked . | . . . . . . . . . . . . Robot Schematics Acquired . | . . . . . . . . . . . . Robots Built 1 | . . . . . . . 1 . . . . Authchips . | . . . . . . . . . . . . Time 76 | . . . . . . . 76 . . . . Total Robot Build Rating 5 | . . . . . . . 5 . . . . Part Schematics Acquired 2 | . . . . . . 2 . . . . . Parts Built 2 | . . . . . . 1 1 . . . . Authchips . | . . . . . . . . . . . . Time 148 | . . . . . . 53 95 . . . . Total Part Build Rating 11 | . . . . . . 6 5 . . . . Parts Repaired . | . . . . . . . . . . . . Time . | . . . . . . . . . . . . Parts Recycled . | . . . . . . . . . . . . Recycled Matter . | . . . . . . . . . . . . Retrieved Matter . | . . . . . . . . . . . . Retrieved Components . | . . . . . . . . . . . . Parts Scanalyzed 1 | . . . . . . 1 . . . . . Part Schematics Acquired 1 | . . . . . . 1 . . . . . Parts Damaged . | . . . . . . . . . . . . Bothacking | -11 -10 -10 -10 -9 -8 -7 -6 -6 -6 -6 -6 ------------ Run | Yrd Mat Min Exi Min Mat Fac Fac Ext Cet Arc Hub Used RIF Installer . | . . . . . . . . . . . . Robots Hacked 6 | . . . . . . 6 . . . . . Non-combat 6 | . . . . . . 6 . . . . . Combat . | . . . . . . . . . . . . Robot Hacks Applied 9 | . . . . . . 9 . . . . . parse_system 2 | . . . . . . 2 . . . . . no_distress 5 | . . . . . . 5 . . . . . find_chute 1 | . . . . . . 1 . . . . . find_recycling 1 | . . . . . . 1 . . . . . Relay Couplers Released 4 | . . . . . . . . . . . 4 Machine Destruction 4 | . . . . . . . . . . . 4 Fabnet Peak Effective % . | . . . . . . . . . . . . Robots Rewired 10 | . . . . . . . . 10 . . . Allies Hacked . | . . . . . . . . . . . . Hacks Repelled . | . . . . . . . . . . . . Allies | -11 -10 -10 -10 -9 -8 -7 -6 -6 -6 -6 -6 -------- Run | Yrd Mat Min Exi Min Mat Fac Fac Ext Cet Arc Hub Total Allies 16 | . . . . . . . 1 15 . . . Largest Group 8 | . . . . . . . 1 8 7 . . Highest-Rated Group 214 | . . . . . . . 19 214 195 . . Highest-Rated Ally 39 | . . . . . . . 19 39 31 . . Total Orders 1 | . . . . . . . . 1 . . . COLLECT 1 | . . . . . . . . 1 . . . Ally Attacks 74 | . . . . . . . . 48 26 . . Total Damage 974 | . . . . . . . . 521 453 . . Kills 8 | . . . . . . . . 6 2 . . Allies Corrupted . | . . . . . . . . . . . . Allies Melted . | . . . . . . . . . . . . Intel | -11 -10 -10 -10 -9 -8 -7 -6 -6 -6 -6 -6 ------- Run | Yrd Mat Min Exi Min Mat Fac Fac Ext Cet Arc Hub Robot Analysis Total 1 | . . . . . . . . 1 . . . Derelict Logs Recovered 2 | . . 2 . . . . . . . . . Drone Launches . | . . . . . . . . . . . . Drone Recoveries . | . . . . . . . . . . . . Exploration | -11 -10 -10 -10 -9 -8 -7 -6 -6 -6 -6 -6 ------------- Run | Yrd Mat Min Exi Min Mat Fac Fac Ext Cet Arc Hub Turns Passed 5063 | 39 153 131 228 100 281 1019 855 1183 537 322 215 Spaces Moved 4669 | 35 149 149 275 115 389 1555 855 657 227 171 92 Core 26 | 7 . . . . . . . 3 . . 16 Treads 376 | . . . . . . . . . 139 171 66 Legs 594 | . . . . . . . . 496 88 . 10 Wheels 716 | 28 149 149 275 115 . . . . . . . Hover . | . . . . . . . . . . . . Flight 2957 | . . . . . 389 1555 855 158 . . . Fastest Speed 50 | 50 80 80 80 80 50 50 50 50 120 160 50 Average Speed 73 | 74 80 80 80 80 50 50 50 105 163 160 151 Slowest Speed 500 | 80 80 80 80 80 50 50 150 500 260 160 260 Overloaded Moves . | . . . . . . . . . . . . Propulsion Burnouts . | . . . . . . . . . . . . Robots Hopped 6 | . . . . . . 2 1 3 . . . Cave-ins Triggered . | . . . . . . . . . . . . Exploration Rate (%) 42 | 3 34 48 61 38 31 34 18 72 66 96 11 Regions Visited 11 Branch Regions 7 Pre-discovered Areas 1 | . . 1 . . . . . . . . . Known Exits Taken 6 | . . . . . 1 1 1 1 1 1 . Unknown Exits Taken 5 | 1 1 1 1 1 . . . . . . . Scrap Searched 1 | . . . . 1 . . . . . . . Spaces Dug . | . . . . . . . . . . . . Terrain Destroyed 56 | . . . . . 20 1 5 14 7 4 5 Melee . | . . . . . . . . . . . . Projectile 22 | . . . . . 1 1 1 3 7 4 5 AOE 34 | . . . . . 19 . 4 11 . . . Terrain Rammed . | . . . . . . . . . . . . Walls Destroyed . | . . . . . . . . . . . . Machines Disabled . | . . . . . . . . . . . . Actions | -11 -10 -10 -10 -9 -8 -7 -6 -6 -6 -6 -6 --------- Run | Yrd Mat Min Exi Min Mat Fac Fac Ext Cet Arc Hub Total 5822 | 47 162 158 284 122 461 1743 1180 1034 311 194 126 Wait 501 | . . 9 . 7 50 106 242 83 1 3 . Move 4646 | 34 148 148 274 114 388 1550 852 650 226 170 92 Hop 6 | . . . . . . 2 1 3 . . . Pick Up 89 | 7 3 . 5 1 6 19 10 15 14 6 3 Fast Attach 11 | . . . . . . 1 3 4 2 . 1 Attach 53 | 6 1 . . . 6 3 6 7 16 3 5 Detach 5 | . . . . . 1 1 2 1 . . . Swap 34 | . . . 1 . 1 7 9 12 . . 4 Drop 45 | . . . 4 . 2 16 9 13 1 . . Fire 230 | . 10 1 . . 7 29 46 53 51 12 21 Melee 9 | . . . . . . 9 . . . . . Ram . | . . . . . . . . . . . . Kick . | . . . . . . . . . . . . Crush . | . . . . . . . . . . . . Escape Stasis 2 | . . . . . . . . 2 . . . Rewire 191 | . . . . . . . . 191 . . . Trap . | . . . . . . . . . . . . Miscellaneous . | . . . . . . . . . . . . Route ------- -11/Scrapyard -10/Materials -10/Mines (discovered 3 exits: [*Mat x2] / *Exi) -10/Exiles -9/Mines (discovered 2 exits: *Mat x2) -8/Materials -7/Factory (discovered 2 exits: *Fac / *Low) -6/Factory -6/Extension (discovered 3 exits: *Fac x2 / *Cet) -6/Cetus -6/Archives (discovered 3 exits: *Fac / *Hub x2) -6/Hub_04(d) (discovered 1 exit: *Fac) History --------- Turn | Location | Event 20 | -11/Scrapyard | Discovered new exit (range 15) 40 | -11/Scrapyard | Entered Materials 171 | -10/Materials | Discovered new exit (range 13) 193 | -10/Materials | Entered Mines 194 | -10/Mines | Assembled infested the area 268 | -10/Mines | Learned Materials terminal intel 269 | -10/Mines | Discovered new exit (range 5) 278 | -10/Mines | Learned location of Zion (-7) 299 | -10/Mines | Discovered new exit (range 10) 316 | -10/Mines | Build established: Mutant 321 | -10/Mines | Discovered new exit (range 5) 324 | -10/Mines | Entered Exiles 346 | -10/Exiles | Met 8R-AWN 358 | -10/Exiles | Met EX-HEX 379 | -10/Exiles | Met EX-BIN 389 | -10/Exiles | Aligned with FarCom system 389 | -10/Exiles | Given EX-Vault access code 408 | -10/Exiles | Opened EX-Vault 413 | -10/Exiles | Found Prototype Flight Unit 430 | -10/Exiles | Warned to stay clear of 0b10 Research branches 455 | -10/Exiles | Met EX-DEC 505 | -10/Exiles | Discovered new exit (range 14) 552 | -10/Exiles | Left Exiles lab with Flying Fortress v7 552 | -10/Exiles | Entered Mines 600 | -9/Mines | Discovered new exit (range 5) 607 | -9/Mines | Received a Rocket Launcher from a helpful Derelict 635 | -9/Mines | Discovered new exit (range 13) 652 | -9/Mines | Entered Materials 652 | -8/Materials | Evolved 4 slots: Propulsion x2, Utility x2 653 | -8/Materials | Loaded intel: 12 terminal locations 654 | -8/Materials | Identified Flying Fortress v7 878 | -8/Materials | Discovered new exit (range 13) 884 | -8/Materials | Identified exit to Factory 933 | -8/Materials | Entered Factory 933 | -7/Factory | Evolved 2 slots: Utility x2 933 | -7/Factory | Discovered new exit (range 11) 1019 | -7/Factory | Identified exit to Lower Caves 1461 | -7/Factory | Fabricated Hvy. Shock Bomb Launcher? 1849 | -7/Factory | Discovered new exit (range 14) 1855 | -7/Factory | Identified exit to Factory 1952 | -7/Factory | Entered another Factory area 1952 | -6/Factory | Evolved 2 slots: Utility x1, Weapon x1 2253 | -6/Factory | Build established: Gunner 2256 | -6/Factory | Fabricated Hvy. Reactive Plating? 2758 | -6/Factory | Discovered new exit (range 6) 2759 | -6/Factory | Identified exit to Extension 2770 | -6/Factory | Fabricated R-10 Processor? 2807 | -6/Factory | Entered Extension 2807 | -6/Extension | Accompanied by 1 ally 2811 | -6/Extension | Disrupted transfer network 2862 | -6/Extension | Rescued a captive Derelict 2883 | -6/Extension | Energy Cycler disabled 2883 | -6/Extension | Rescued a captive Derelict 2884 | -6/Extension | Rescued a captive Derelict 2884 | -6/Extension | Rescued a captive Derelict 2884 | -6/Extension | Rescued a captive Derelict 2884 | -6/Extension | Rescued a captive Derelict 2885 | -6/Extension | Rescued a captive Derelict 2885 | -6/Extension | Rescued a captive Derelict 2886 | -6/Extension | Rescued a captive Derelict 2886 | -6/Extension | Rescued a captive Derelict 2887 | -6/Extension | Rescued a captive Derelict 2887 | -6/Extension | Rescued a captive Derelict 2888 | -6/Extension | Rescued a captive Derelict 2892 | -6/Extension | Rescued a captive Derelict 3008 | -6/Extension | Lost 4 parts (1p1n1u1w) 3020 | -6/Extension | Destroyed 7 combat bots 3410 | -6/Extension | Spotted B-75 Beast 3436 | -6/Extension | Destroyed B-75 Beast 3470 | -6/Extension | Lost 5 allies 3502 | -6/Extension | Spotted B-75 Beast 3506 | -6/Extension | Destroyed B-75 Beast 3507 | -6/Extension | First assault squad dispatched 3513 | -6/Extension | Discovered new exit (range 15) 3532 | -6/Extension | Identified exit to Factory 3552 | -6/Extension | Extracted ID and sensor layout for unrecognized location from A7's data core 3724 | -6/Extension | Build established: Scavenger-Gunner 3965 | -6/Extension | Discovered exit to Factory (range 10) 3966 | -6/Extension | Discovered new exit (range 6) 3972 | -6/Extension | Identified exit to Cetus 3990 | -6/Extension | Entered Cetus 3990 | -6/Cetus | Accompanied by 7 allies 4008 | -6/Cetus | Spotted Cetus Guard 4008 | -6/Cetus | Spotted Cetus Guard 4016 | -6/Cetus | Spotted Cetus Guard 4016 | -6/Cetus | Spotted Cetus Guard 4017 | -6/Cetus | Allies destroyed Cetus Guard 4029 | -6/Cetus | Allies destroyed Cetus Guard 4031 | -6/Cetus | Destroyed Cetus Guard 4046 | -6/Cetus | Destroyed Cetus Guard 4067 | -6/Cetus | Lost 6 allies 4090 | -6/Cetus | Core integrity fell below 50% 4115 | -6/Cetus | Lost 16 parts (1p6n4u5w) 4415 | -6/Cetus | Discovered new exit (range 16) 4442 | -6/Cetus | Identified exit to Archives 4480 | -6/Cetus | Spotted Cetus Guard 4480 | -6/Cetus | Spotted Cetus Guard 4525 | -6/Cetus | Spotted Cetus Guard 4527 | -6/Cetus | Spotted Cetus Guard 4527 | -6/Cetus | Entered Archives 4639 | -6/Archives | Unable to access archive contents 4651 | -6/Archives | Discovered new exit (range 16) 4671 | -6/Archives | Unable to access archive contents 4678 | -6/Archives | Discovered exit to Factory (range 14) 4687 | -6/Archives | Unable to access archive contents 4754 | -6/Archives | Discovered new exit (range 14) 4773 | -6/Archives | Identified exit to Hub_04(d) 4800 | -6/Archives | Unable to access archive contents 4823 | -6/Archives | Unable to access archive contents 4849 | -6/Archives | Entered Hub_04(d) 4973 | -6/Hub_04(d) | Lost 3 parts (1p2n) 4988 | -6/Hub_04(d) | Core integrity fell below 20% 5025 | -6/Hub_04(d) | Lost 4 parts (2u2w) 5055 | -6/Hub_04(d) | Released all parts (7) 5061 | -6/Hub_04(d) | Discovered exit to Factory (range 15) 5064 | -6/Hub_04(d) | Destroyed by Y-54 Guardian with Gatling Laser Last Messages --------------- Flak Gun blown off. Neutrino Core blown off. E-15 Imp destroyed. Slug penetrates Garrison Access. K-01 Serf cleans the Control Node. Slug penetrates L-41 Fighter. L-41 Fighter destroyed. K-01 Serf collects debris. Slug penetrates Wall. Adv. Targeting Computer destroyed. K-01 Serf collects debris. Centrium Heavy Treads destroyed. Released KE Penetrator. Released Adv. Targeting Computer. Released Med. Storage Unit. Released Imp. Signal Interpreter. Released Armor Integrity Analyzer. Released Wave Gun. Released Imp. Light Armor Plating. EXIT=FOUND: FACTORY Map ----- +----------------------------------------------------+ | #* """"*#!"%" #????????????????? | | # """"[# "# ""#????????????????? | | # """" # # " ""#????????????????? | | # """" # # " T"#????????????????? | | #/ # "?? ""#????????????????? | | #%###+### # ??""?????????????????? | | #*! # #! ????????????????????? | | # !# #?##???????????????????? | | # [#! #??????????????????????? | | # " " "b/!! #??????????H???????????? | | # " " "g#h! #??????????????????????? | | # " " " # #??????????????????????? | | # + +??????????????????????? | | # " " " # #??????????????????????? | | # " " " #l #??????????????????????? | | # " " " # #??????????????????????? | | # # #??????????????????????? | | ######### #??????????????????????? | | # # #??????????????????????? | | #"" + #??????????????????????? | | #"T # ###????????????????????? | | #"" " " # T#????????????????????? | | # " "?+ ""#????????????????????? | | # " "?# ###????????????????????? | | #== ??# #??????????????????????? | | #== " ??# @#??????????????????????? | | ?= "???# #??????????????????????? | | ?? "Y??# #??????????????????????? | | ????????# #??????????????????????? | | ????????# +??????????????????????? | | ????????# #??????????????????????? | | ????????# #??????????????????????? | | ????????# #??????????????????????? | | ????????# #??????????????????????? | | ???????? ??????????????????????? | | ???????? ] ???????????????????????? | | ???????? Y ???????????????????????? | | ???????# ???????????????????????? | | ???????# ???????????????????????? | | ???????###+#???????????????????????? | | ???????????????????????????????????? | | ???????????????????????????????????? | | ???????????????????????????????????? | | ???????????????????????????????????? | | ???????????????????????????????????? | | ???????????????????????????????????? | | ???????????????????????????????????? | | ???????????????????????????????????? | | ???????????????????????????????????? | | ???????????????????????????????????? | +----------------------------------------------------+ Best States ------------- Heat Dissipation 65 Coolant Potential 65 Energy Generation 19 Energy Capacity 315 Matter Stores 300 Matter Capacity 500 Sight Range 22 Terrain Scan Density 10 ECM Strength 2 Armor Coverage 450 Resistance: KI 30 Power Shielding 33 Evasion (%) 60 Targeting Accuracy 24 Armor Integrity Analysis 30 Recoil Reduction 2 Offensive Hacking 12 Item Schematics ----------------- Hvy. Shock Bomb Launcher | -7/Factory | Hacked Med. Reactive Plating | -7/Factory | Scanalyzed Robot Schematics ------------------ None Fabricated ------------ Hvy. Shock Bomb Launcher | x1 | -7/Factory Hvy. Reactive Plating | x1 | -6/Factory | Preloaded R-10 Processor | x1 | -6/Factory | Preloaded Alien Tech Used ----------------- None Achievements -------------- None Challenges ------------ None Game ------ Seed SpacefoldHeartTorch Manual? 0 Play Time 01:39:26 Cumulative 31.4 hours Start 2024.04.12 @ 07:25:17 End 2024.04.12 @ 09:08:46 Sessions 1 Manual Loads 0 Difficulty Rogue Special Mode None Game No. 38 Rogue 29 Adventurer 9 Explorer 0 Win Type - Total 0 Types 0/0/0/0/0/0/0/0/0 Lore% 24 Gallery% 38 Achievement% 29 Wizard Run 0 Options --------- Layout 1 ASCII 0 Keyboard 0 Movement Mouse Keybinds 0 Fullscreen 1 Font 24/Smallcaps Map View 50x35 Zoom Use 0% Tactical HUD 0 Map Filters NONE Filters NONE Steam 1 RUN: e1802b83-9e28-4495-9276-373f120c1216